bitfinex-derivatives/quotes_ETHF0:USTF0_20240917
["timestamp","ask_amount","ask_price","bid_price","bid_amount"]
[1726557192591,0.02833221,2303.1,2303.0,8.00069104]
[1726557192799,0.02833221,2303.1,2303.0,11.20849104]
[1726557193495,0.02833221,2303.1,2303.0,8.00069104]
[1726557193691,0.02833221,2303.1,2303.0,11.20849104]
[1726557194095,0.02833221,2303.1,2303.0,12.91536768]
[1726557194500,0.02833221,2303.1,2303.0,8.00180738]
[1726557194694,0.02833221,2303.1,2303.0,11.20960738]
[1726557195196,0.02833221,2303.1,2303.0,6.86720738]
[1726557195389,0.02833221,2303.1,2303.0,9.14535481]
[1726557197807,0.02833221,2303.1,2303.0,8.57338192]
[1726557198698,0.02833221,2303.1,2303.0,8.57337787]
[1726557199005,0.02833221,2303.1,2303.0,6.88918787]
[1726557199504,0.02833221,2303.1,2303.0,7.32337787]
[1726557199704,0.02833221,2303.1,2303.0,8.46095271]
[1726557200005,0.02833221,2303.1,2303.0,6.75478382]
[1726557200206,0.02833221,2303.1,2303.0,8.02745719]
[1726557200399,0.02833221,2303.1,2303.0,6.3212867]
[1726557200994,0.02833221,2303.1,2303.0,6.32131099]
[1726557201300,0.02833221,2303.1,2303.0,4.80794126]
[1726557201698,0.02833221,2303.1,2303.0,6.75545199]
[1726557201902,0.02833221,2303.1,2303.0,8.00538039]
[1726557202300,0.02833221,2303.1,2303.0,8.57397444]
[1726557203700,0.02833221,2303.1,2303.0,8.00531371]
[1726557204106,0.02833221,2303.1,2303.0,6.88978444]
[1726557204305,0.02833221,2303.1,2303.0,4.37367959]
[1726557207211,0.02833221,2303.1,2303.0,8.00508194]
[1726557207411,0.02833221,2303.1,2303.0,8.57374766]
[1726557207713,0.02833221,2303.1,2303.0,6.05773058]
[1726557212206,0.02833221,2303.1,2303.0,8.00478048]
[1726557212410,0.02833221,2303.1,2303.0,6.05773058]
[1726557213516,0.02833221,2303.1,2303.0,8.57353436]
[1726557216420,0.02833221,2303.1,2303.0,8.57335055]
[1726557216617,0.02833221,2303.1,2303.0,9.56252749]
[1726557217916,0.02833221,2303.1,2303.0,7.28438006]
[1726557218413,0.02833221,2303.1,2303.0,8.9900581]
[1726557219007,0.02833221,2303.1,2303.0,5.7822581]
[1726557219212,0.02833221,2303.1,2303.0,8.9900581]
[1726557219613,0.02833221,2303.1,2303.0,5.7822581]
[1726557219917,0.02833221,2303.1,2303.0,8.9900581]
[1726557221318,0.02833221,2303.1,2303.0,8.99004865]
[1726557223711,0.02833221,2303.1,2303.0,9.71005019]
[1726557224322,0.02833221,2303.1,2303.0,8.57284865]
[1726557226226,0.02833221,2303.1,2303.0,8.57303409]
[1726557228116,0.02833221,2303.1,2303.0,8.00465118]
[1726557228324,0.02833221,2303.1,2303.0,6.32046118]
[1726557228522,0.02833221,2303.1,2303.0,4.37346995]
[1726557230421,0.02833221,2303.1,2303.0,1.16566995]
[1726557230828,0.02833221,2303.1,2303.0,3.11264943]
[1726557231127,4.37073221,2303.1,2303.0,1.16566995]
[1726557231619,5.17643221,2303.1,2303.0,1.16566995]
[1726557231814,5.17643221,2303.1,2303.0,0.02837482]
[1726557233933,5.61060221,2303.1,2303.0,0.02837482]
[1726557234237,5.17643221,2303.1,2303.0,0.02837482]
[1726557236131,0.83403221,2303.1,2303.0,0.02837482]
[1726557237627,0.83403221,2303.1,2303.0,0.46256482]
[1726557237836,0.83403221,2303.1,2303.0,1.71256482]
[1726557238226,5.17643221,2303.1,2303.0,0.02837482]
[1726557238735,5.17643221,2303.1,2303.0,0.46256482]
[1726557239238,5.17643221,2303.1,2303.0,0.02837482]
[1726557239532,5.17643221,2303.1,2303.0,0.46256482]
[1726557240136,5.17643221,2303.1,2303.0,0.02837482]
[1726557240334,0.83403221,2303.1,2303.0,0.46256482]
[1726557240533,5.17643221,2303.1,2303.0,0.46256482]
[1726557242933,0.83403221,2303.1,2303.0,0.46256482]
[1726557243136,0.83403221,2303.1,2303.0,0.02837482]
[1726557243438,5.17643221,2303.1,2303.0,0.02837482]
[1726557243637,6.86060221,2303.1,2303.0,0.02837482]
[1726557250042,10.06840221,2303.1,2303.0,0.02837482]
[1726557252031,6.86060221,2303.1,2303.0,0.02837482]
[1726557259442,2.51820221,2303.1,2303.0,0.02837482]
[1726557259648,6.86060221,2303.1,2303.0,0.02837482]
[1726557274041,2.51820221,2303.1,2303.0,0.02837482]
[1726557276157,13.94603221,2303.1,2303.0,0.02837482]
[1726557276346,0.43425,2302.8,2302.5,0.5206]
[1726557276543,1.25,2302.7,2302.5,0.4196]
[1726557276747,0.02833221,2302.6,2302.5,0.4196]
[1726557279757,0.02833221,2302.6,2302.5,0.85388]
[1726557281152,0.02833221,2302.6,2302.5,2.10388]
[1726557281357,0.02833221,2302.6,2302.5,3.24117513]
[1726557281752,0.02833221,2302.6,2302.5,6.44897513]
[1726557282960,0.02833221,2302.6,2302.5,3.24117513]
[1726557283351,0.02833221,2302.6,2302.5,5.75570665]
[1726557284263,0.02833221,2302.6,2302.5,8.96350665]
[1726557284761,0.02833221,2302.6,2302.5,7.1448328]
[1726557287265,0.02833221,2302.6,2302.5,3.9370328]
[1726557288558,0.02833221,2302.6,2302.5,4.50570665]
[1726557288865,0.02833221,2302.6,2302.5,3.93726499]
[1726557289255,0.02833221,2302.6,2302.5,5.75570665]
[1726557290369,0.02833221,2302.6,2302.5,4.50570665]
[1726557290669,0.02833221,2302.6,2302.5,4.50658593]
[1726557291759,0.02833221,2302.6,2302.5,7.71438593]
[1726557292566,0.02833221,2302.6,2302.5,5.76735804]
[1726557292758,0.02833221,2302.6,2302.5,7.71458089]
[1726557296571,0.02833221,2302.6,2302.5,4.50678089]
[1726557297477,0.02833221,2302.6,2302.5,4.50682023]
[1726557301191,0.02833221,2302.6,2302.5,4.5185785]
[1726557304192,0.02833221,2302.6,2302.5,7.7263785]
[1726557305089,0.02833221,2302.6,2302.5,4.5185785]
[1726557305691,0.02833221,2302.6,2302.5,4.51898136]
[1726557306491,0.02833221,2302.6,2302.5,3.66510136]
[1726557306691,11.62153221,2302.6,2302.3,1.1378037]
[1726557306895,11.62153221,2302.6,2302.1,1.1378037]
[1726557306896,1.25,2302.4,2302.1,1.1378037]
[1726557307087,1.25,2302.2,2302.0,1.1378037]
[1726557307294,1.68434,2302.2,2301.9,1.1378037]
[1726557307496,1.25,2302.0,2301.9,1.5722037]
[1726557307792,1.27833221,2302.0,2301.9,1.5722037]
[1726557308099,0.02833221,2302.0,2301.9,4.7800037]
[1726557308300,0.02833221,2302.0,2301.9,4.77941901]
[1726557309299,0.02833221,2302.0,2301.9,1.57161901]
[1726557310293,0.02833221,2302.0,2301.9,0.4344]
[1726557311804,0.02833221,2302.0,2301.9,1.57161901]
[1726557311993,0.02833221,2302.0,2301.9,0.4344]
[1726557316504,0.02833221,2302.0,2301.9,4.7784]
[1726557316800,4.253,2302.7,2302.5,0.43428]
[1726557316801,5.503,2302.7,2302.5,0.43428]
[1726557317002,0.3941,2302.6,2302.5,0.43428]
[1726557317309,0.8039,2302.8,2302.5,0.84538]
[1726557317499,0.3941,2302.7,2302.5,0.84538]
[1726557318101,1.6441,2302.7,2302.5,0.84538]
[1726557319208,0.3941,2302.7,2302.6,3.64206]
[1726557319711,0.3941,2302.7,2302.6,3.2078]
[1726557320411,0.3941,2302.7,2302.6,3.64206]
[1726557320614,0.4083,2302.8,2302.6,3.64206]
[1726557321503,0.4083,2302.8,2302.5,2.09538]
[1726557321704,0.3913,2302.7,2302.5,2.09538]
[1726557322014,0.3913,2302.7,2302.6,3.64206]
[1726557326115,0.3913,2302.7,2302.6,3.2078]
[1726557326311,0.814,2302.7,2302.6,3.2078]
[1726557326812,0.814,2302.7,2302.6,3.64206]
[1726557330613,0.3913,2302.7,2302.6,3.64206]
[1726557331203,4.58617,2303.2,2302.6,4.4578]
[1726557331412,0.3925,2303.0,2302.7,1.25]
[1726557331706,0.3925,2303.0,2302.8,0.3835]
[1726557332117,0.3925,2303.0,2302.9,0.4006]
[1726557332715,0.3925,2303.0,2302.9,0.83481]
[1726557333014,0.3925,2303.0,2302.9,1.6506]
[1726557333216,0.3925,2303.0,2302.9,5.29261]
[1726557333419,0.4045,2303.2,2303.1,0.43417]
[1726557333811,0.3827,2303.4,2303.3,0.43413]
[1726557334119,0.3827,2303.4,2303.2,5.27545]
[1726557334618,0.3827,2303.4,2303.3,0.4129]
[1726557334819,0.3827,2303.4,2303.3,0.808]
[1726557335519,0.3913,2303.5,2303.3,1.24213]
[1726557335720,0.8213,2303.6,2303.4,0.43411]
[1726557336019,0.8213,2303.6,2303.3,1.24213]
[1726557337215,0.8213,2303.6,2303.3,4.44993]
[1726557337520,0.8213,2303.6,2303.3,4.44992]
[1726557338810,0.8213,2303.6,2303.3,1.24212]
[1726557339012,0.8213,2303.6,2303.3,4.44992]
[1726557342617,0.8213,2303.6,2303.4,0.43411]
[1726557343316,0.8213,2303.6,2303.3,4.44992]
[1726557343819,0.8213,2303.6,2303.4,0.43411]
[1726557344813,2.0713,2303.6,2303.3,4.05483]
[1726557347524,2.0713,2303.6,2303.4,0.43411]
[1726557347821,0.8213,2303.6,2303.5,1.6841]
[1726557348024,1.25,2303.9,2303.5,1.25]
[1726557348217,1.25,2303.9,2303.6,1.23616]
[1726557348520,1.25,2303.9,2303.7,0.43405]
[1726557348712,1.25,2303.9,2303.6,4.44396]
[1726557349318,1.25,2303.9,2303.7,0.43406]
[1726557349725,1.25,2303.9,2303.6,4.44397]
[1726557350326,1.25,2303.9,2303.7,0.43405]
[1726557350923,1.1797,2304.0,2303.7,1.68404]
[1726557352117,1.1797,2304.0,2303.8,0.43404]
[1726557352827,1.1797,2304.0,2303.9,0.408]
[1726557354622,1.1797,2304.0,2303.7,1.68405]
[1726557354927,1.1797,2304.0,2303.7,0.84285]
[1726557355820,1.25,2303.9,2303.7,0.4088]
[1726557357026,1.25,2303.9,2303.7,0.84285]
[1726557358935,1.1797,2304.0,2303.9,0.43402]
[1726557359226,4.253,2304.6,2304.2,0.43396]
[1726557359429,0.3911,2304.5,2304.3,0.4052]
[1726557360031,0.3911,2304.5,2304.4,3.2078]
[1726557361626,0.3987,2304.7,2304.4,8.797]
[1726557361825,0.418,2304.9,2304.6,1.68388]
[1726557362034,4.152,2305.4,2304.8,1.25]
[1726557362228,0.3836,2305.3,2305.2,1.25]
[1726557362834,0.3836,2305.3,2305.2,1.68378]
[1726557363139,4.152,2305.7,2305.2,11.5876]
[1726557363332,4.152,2305.7,2305.5,3.2078]
[1726557363633,0.3836,2306.0,2305.5,3.2078]
[1726557363634,1.25,2305.9,2305.5,3.2078]
[1726557363928,1.25,2305.9,2305.5,4.0105]
[1726557364236,0.3836,2306.0,2305.6,1.25]
[1726557364837,0.3836,2306.0,2305.8,3.2078]
[1726557365034,1.6336,2306.0,2305.8,3.2078]
[1726557365237,1.6336,2306.0,2305.6,1.25]
[1726557365438,1.25,2305.9,2305.5,4.0105]
[1726557365929,2.71,2305.9,2305.5,4.0105]
[1726557366823,2.71,2305.9,2305.5,3.2078]
[1726557367638,3.14365,2305.9,2305.5,3.2078]
[1726557367941,2.71,2305.9,2305.5,3.2078]
[1726557368932,3.14364,2305.9,2305.5,3.2078]
[1726557369137,2.71,2305.9,2305.5,3.2078]
[1726557369643,3.14365,2305.9,2305.5,3.2078]
[1726557370129,2.71,2305.9,2305.5,3.2078]
[1726557370540,3.14365,2305.9,2305.5,3.2078]
[1726557371532,0.43367,2305.8,2305.5,3.2078]
[1726557371839,0.43365,2305.9,2305.5,3.2078]
[1726557372725,0.43366,2305.8,2305.5,3.2078]
[1726557372932,0.43365,2305.9,2305.5,3.2078]
[1726557373426,0.43366,2305.9,2305.5,3.2078]
[1726557373633,0.43367,2305.8,2305.5,3.2078]
[1726557374438,0.3836,2306.0,2305.5,3.2078]
[1726557374439,0.43369,2305.7,2305.5,3.2078]
[1726557374626,0.43369,2305.7,2305.2,0.8014]
[1726557374627,2.71,2305.7,2305.2,0.8014]
[1726557374829,0.43372,2305.5,2305.2,0.3967]
[1726557375029,2.71,2305.5,2305.1,3.2078]
[1726557375238,2.71,2305.5,2304.8,2.811]
[1726557375239,0.43378,2305.2,2304.8,6.45264]
[1726557375534,0.4206,2305.4,2304.8,6.45264]
[1726557375535,0.4206,2305.4,2304.8,3.2078]
[1726557375738,0.43381,2305.1,2304.8,3.2078]
[1726557375939,0.3927,2305.0,2304.8,3.2078]
[1726557378536,0.82652,2305.0,2304.8,3.2078]
[1726557378735,0.417,2304.9,2304.8,3.2078]
[1726557380841,0.3927,2305.0,2304.8,3.2078]
[1726557381035,0.3923,2305.2,2304.8,3.2078]
[1726557381235,0.3905,2305.4,2305.1,3.2078]
[1726557381539,4.5443,2305.6,2305.2,0.82836]
[1726557381741,4.5443,2305.6,2305.4,3.2078]
[1726557381742,4.152,2305.6,2305.4,3.2078]
[1726557381941,0.82107,2305.8,2305.4,3.64153]
[1726557382236,0.3923,2305.9,2305.5,0.43372]
[1726557382237,0.82595,2305.9,2305.5,0.43372]
[1726557382440,0.82595,2305.9,2305.4,3.2078]
[1726557382441,0.82595,2305.9,2305.4,3.64153]
[1726557383031,0.82595,2305.9,2305.5,0.43372]
[1726557383433,0.82595,2305.9,2305.4,3.64153]
[1726557384931,0.43367,2305.8,2305.4,3.2078]
[1726557385438,0.43367,2305.8,2305.4,3.64154]
[1726557385635,0.43367,2305.8,2305.4,3.2078]
[1726557386436,0.43368,2305.7,2305.4,3.2078]
[1726557386744,3.1023,2305.9,2305.5,0.43372]
[1726557386745,0.82595,2305.9,2305.5,0.43372]
[1726557387139,0.3923,2305.9,2305.6,0.4337]
[1726557387442,0.3923,2305.9,2305.5,0.43371]
[1726557388040,0.82595,2305.9,2305.4,3.64152]
[1726557388741,0.82595,2305.9,2305.5,0.43372]
[1726557389141,0.82595,2305.9,2305.4,3.64153]
[1726557389345,0.82595,2305.9,2305.5,0.43371]
[1726557389543,0.3923,2305.9,2305.5,0.43371]
[1726557389848,0.3923,2305.9,2305.4,3.2078]
[1726557389849,0.3923,2305.9,2305.6,0.4337]
[1726557390047,0.3923,2305.9,2305.7,0.3861]
[1726557390237,0.43363,2306.0,2305.7,0.8049]
[1726557390644,0.82101,2306.1,2305.7,1.23858]
[1726557392747,0.43363,2306.0,2305.7,0.8049]
[1726557392955,0.82102,2306.1,2305.7,0.8049]
[1726557393241,0.82102,2306.1,2305.7,1.23858]
[1726557395049,0.43363,2306.0,2305.7,0.8049]
[1726557395250,0.82101,2306.1,2305.7,1.23858]
[1726557395850,0.43363,2306.0,2305.7,1.23858]
[1726557396054,0.43363,2306.0,2305.7,0.8049]
[1726557396443,0.43365,2305.9,2305.7,0.4188]
[1726557401556,0.43364,2305.9,2305.7,0.4188]
[1726557403554,7.48047,2305.8,2305.4,0.43372]
[1726557403753,0.796,2305.7,2305.4,0.43372]
[1726557404555,0.796,2305.7,2305.3,1.23165]
[1726557404858,1.22968,2305.7,2305.3,1.23165]
[1726557405050,0.4337,2305.6,2305.3,0.4165]
[1726557405247,0.43374,2305.4,2305.1,3.2078]
[1726557405454,0.43374,2305.4,2305.1,3.6243]
[1726557405762,3.14377,2305.3,2304.8,3.2078]
[1726557405944,0.4104,2305.2,2304.8,3.6069]
[1726557406148,2.71,2305.0,2304.8,3.2078]
[1726557406552,0.3934,2304.9,2304.8,3.2078]
[1726557406757,7.4418,2304.9,2304.5,0.101]
[1726557406957,3.14388,2304.7,2304.2,0.101]
[1726557407154,3.14388,2304.7,2304.2,0.43396]
[1726557407155,2.71,2304.7,2304.2,0.43396]
[1726557407363,3.14392,2304.5,2304.0,0.3952]
[1726557407552,0.82733,2304.4,2304.0,0.3952]
[1726557407752,0.3934,2304.4,2304.0,0.3952]
[1726557408860,0.3934,2304.4,2304.1,3.64177]
[1726557409068,0.3934,2304.4,2304.1,3.64178]
[1726557409253,0.3924,2304.8,2304.3,0.43394]
[1726557409951,3.1024,2304.8,2304.3,0.43394]
[1726557410151,3.53626,2304.8,2304.2,0.83825]
[1726557410358,3.53626,2304.8,2304.2,0.4043]
[1726557410952,3.53626,2304.8,2304.4,3.2078]
[1726557411153,3.1024,2304.8,2304.4,3.2078]
[1726557411361,3.53626,2304.8,2304.4,3.2078]
[1726557412255,0.3924,2304.8,2304.4,3.2078]
[1726557412849,0.43388,2304.7,2304.2,0.4043]
[1726557413050,0.43388,2304.7,2304.2,0.83826]
[1726557414260,0.43389,2304.6,2304.2,0.4043]
[1726557415265,0.43388,2304.7,2304.2,0.83826]
[1726557419661,0.43388,2304.7,2304.2,0.4043]
[1726557420359,0.43388,2304.7,2304.2,0.83825]
[1726557421160,0.82626,2304.8,2304.3,0.43393]
[1726557421369,0.3924,2304.8,2304.2,0.791]
[1726557421667,0.82625,2304.8,2304.4,3.64171]
[1726557421962,0.3924,2304.8,2304.5,0.3893]
[1726557422263,0.82625,2304.8,2304.5,0.3893]
[1726557422763,0.3924,2304.8,2304.5,0.3893]
[1726557423067,3.2078,2304.9,2304.8,0.43385]
[1726557423268,3.2078,2304.9,2304.8,3.14385]
[1726557423563,3.2078,2304.9,2304.8,7.48225]
[1726557423766,3.2078,2304.9,2304.8,3.14385]
[1726557423965,3.2078,2304.9,2304.8,7.48225]
[1726557424660,3.2078,2304.9,2304.8,3.14385]
[1726557424861,3.2078,2304.9,2304.8,7.48225]
[1726557425363,3.2078,2304.9,2304.8,0.43385]
[1726557426272,3.2078,2304.9,2304.7,0.83616]
[1726557426461,3.2078,2304.9,2304.7,0.83615]
[1726557426766,3.2078,2304.9,2304.7,0.43385]
[1726557426962,3.2078,2304.9,2304.7,0.43386]
[1726557427465,3.2078,2304.9,2304.8,0.43385]
[1726557428168,4.152,2305.3,2304.7,5.9178]
[1726557428467,4.58577,2305.3,2304.9,0.43383]
[1726557429173,4.58577,2305.3,2304.8,3.64164]
[1726557429367,4.58577,2305.3,2304.9,0.43383]
[1726557429963,4.58577,2305.3,2304.8,3.2078]
[1726557429964,0.43378,2305.2,2304.8,3.2078]
[1726557430459,0.3845,2305.1,2304.8,3.2078]
[1726557430658,0.3845,2305.1,2304.7,5.9178]
[1726557430867,0.3836,2305.0,2304.7,5.9178]
[1726557431066,0.3836,2305.0,2304.7,3.2078]
[1726557431262,0.3836,2305.0,2304.7,3.64166]
[1726557431969,0.3836,2305.0,2304.8,0.43385]
[1726557432869,0.3836,2305.0,2304.7,3.64166]
[1726557433068,0.3836,2305.0,2304.8,0.43385]
[1726557433471,0.3836,2305.0,2304.7,3.2078]
[1726557434070,0.3836,2305.0,2304.8,0.43385]
[1726557435276,0.3836,2305.0,2304.9,0.43383]
[1726557435579,0.43376,2305.3,2304.9,0.43382]
[1726557435771,0.43376,2305.3,2304.7,5.9178]
[1726557435772,0.4181,2305.3,2305.0,1.23731]
[1726557436468,0.4181,2305.3,2305.0,0.8035]
[1726557438574,0.85186,2305.3,2305.0,0.8035]
[1726557439471,0.4181,2305.3,2305.0,0.8035]
[1726557440777,0.85186,2305.3,2305.0,0.8035]
[1726557441176,0.4024,2305.2,2305.0,0.8035]
[1726557442372,0.4024,2305.2,2305.0,1.23731]
[1726557442573,0.4181,2305.3,2305.0,0.8035]
[1726557443068,0.4181,2305.3,2305.0,1.2373]
[1726557444165,0.4181,2305.3,2305.2,0.43378]
[1726557444469,0.43371,2305.6,2305.2,0.43378]
[1726557444667,0.3832,2305.5,2305.2,0.43378]
[1726557445475,0.3832,2305.5,2305.1,3.2078]
[1726557445779,0.3832,2305.5,2305.2,0.43378]
[1726557445976,0.3832,2305.5,2305.3,0.43375]
[1726557446376,0.3832,2305.5,2305.4,0.3885]
[1726557447071,3.94498,2305.7,2305.4,0.3885]
[1726557447269,3.9199,2305.7,2305.4,0.82223]
[1726557447475,3.9199,2305.7,2305.4,0.3885]
[1726557447671,4.35358,2305.7,2305.4,0.3885]
[1726557447875,0.8245,2305.7,2305.5,0.4065]
[1726557448878,1.25818,2305.7,2305.5,0.4065]
[1726557449479,0.8245,2305.7,2305.5,0.4065]
[1726557451279,0.8245,2305.7,2305.5,0.8402]
[1726557451481,0.8245,2305.7,2305.5,0.4065]
[1726557451682,0.8245,2305.7,2305.5,0.84022]
[1726557452078,3.56595,2305.9,2305.5,0.4065]
[1726557452079,0.4223,2305.9,2305.5,0.4065]
[1726557452278,0.4223,2305.9,2305.6,0.39]
[1726557452675,0.4223,2305.9,2305.6,0.82369]
[1726557454382,0.84543,2306.0,2305.6,0.82369]
[1726557454787,0.84543,2306.0,2305.6,0.43369]
[1726557457483,0.4118,2306.0,2305.5,0.4065]
[1726557457784,0.4118,2306.0,2305.6,0.43369]
[1726557457986,0.84543,2306.0,2305.6,0.43369]
[1726557458578,0.4118,2306.0,2305.6,0.43369]
[1726557460984,0.84543,2306.0,2305.6,0.43369]
[1726557463291,0.4118,2306.0,2305.6,0.43374]
[1726557463592,0.84547,2306.0,2305.6,0.43373]
[1726557464386,0.4118,2306.0,2305.6,0.43373]
[1726557464589,0.84548,2306.0,2305.6,0.43373]
[1726557464892,0.4118,2306.0,2305.6,0.43373]
[1726557465891,0.84547,2306.0,2305.6,0.43373]
[1726557466897,0.84547,2306.0,2305.5,0.4065]
[1726557466898,0.43369,2305.9,2305.5,0.84025]
[1726557467093,2.71,2305.7,2305.5,0.4065]
[1726557467589,0.4163,2305.6,2305.5,0.4065]
[1726557468692,0.4163,2305.6,2305.5,0.84026]
[1726557471698,0.4163,2305.6,2305.5,0.4065]
[1726557472105,0.4163,2305.6,2305.5,0.84026]
[1726557473205,0.4163,2305.6,2305.5,0.4065]
[1726557473913,0.4163,2305.6,2305.5,0.84026]
[1726557474706,0.4163,2305.6,2305.5,0.4065]
[1726557474904,0.4163,2305.6,2305.5,0.84026]
[1726557475099,0.4163,2305.6,2305.5,0.4065]
[1726557476208,0.4163,2305.6,2305.5,0.84026]
[1726557476506,0.4163,2305.6,2305.5,0.4065]
[1726557478203,0.4163,2305.6,2305.5,0.84026]
[1726557481713,0.4163,2305.6,2305.2,4.34372278]
[1726557481916,1.25,2305.5,2305.2,1.22861]
[1726557482122,1.25,2305.5,2305.2,1.22862]
[1726557482821,1.25,2305.5,2304.9,1.56978278]
[1726557483019,4.89159,2305.4,2305.0,0.43385]
[1726557483317,0.3974,2305.3,2305.0,0.43385]
[1726557483704,0.4232,2305.2,2305.0,0.43385]
[1726557484510,0.4232,2305.2,2304.9,1.23426]
[1726557484705,0.85702,2305.2,2304.9,0.8004]
[1726557484914,1.26002,2305.2,2304.9,0.8004]
[1726557485314,0.8262,2305.2,2304.9,0.81927]
[1726557485718,0.8262,2305.2,2304.8,0.3931]
[1726557486016,5.9178,2305.1,2304.7,0.403]
[1726557486221,0.43386,2305.0,2304.7,0.403]
[1726557486721,0.3915,2304.9,2304.7,0.403]
[1726557487112,0.387,2304.8,2304.7,0.83691]
[1726557487715,0.387,2304.8,2304.6,0.83262]
[1726557488022,0.387,2304.8,2304.4,0.403]
[1726557488023,2.71,2304.7,2304.4,0.403]
[1726557488217,2.71,2304.7,2304.3,0.4185]
[1726557488520,3.14392,2304.7,2304.3,0.4185]
[1726557488822,0.43393,2304.6,2304.3,0.4185]
[1726557489014,0.43397,2304.4,2304.3,0.4185]
[1726557489214,0.43397,2304.4,2304.2,0.3894]
[1726557489414,0.4141,2304.3,2304.2,0.3894]
[1726557491920,0.84809,2304.3,2304.1,3.6263]
[1726557492123,2.71,2304.2,2303.8,0.81587]
[1726557492327,0.4148,2304.1,2303.8,0.81587]
[1726557493330,3.6226,2304.1,2303.8,0.81587]
[1726557493527,3.6226,2304.1,2303.8,0.3818]
[1726557494027,0.4148,2304.1,2303.8,0.3818]
[1726557494527,2.71,2304.0,2303.5,0.43413]
[1726557494734,2.71,2303.8,2303.5,1.23293]
[1726557494923,5.9178,2303.8,2303.5,1.23294]
[1726557495117,0.3826,2303.9,2303.6,3.2078]
[1726557495323,0.4169,2304.2,2303.8,2.71]
[1726557495526,0.3932,2304.4,2304.0,2.71]
[1726557495820,0.3826,2304.5,2304.1,1.2036]
[1726557496022,5.9178,2304.7,2304.3,2.71]
[1726557496023,3.2078,2304.7,2304.3,2.71]
[1726557496218,3.2078,2304.7,2304.4,0.43396]
[1726557496432,3.1178,2304.9,2304.4,0.43396]
[1726557496729,3.55168,2304.9,2304.3,0.43398]
[1726557496930,3.1178,2304.9,2304.4,0.43397]
[1726557497528,3.55168,2304.9,2304.2,5.9178]
[1726557497934,3.55168,2304.9,2304.3,0.43399]
[1726557499027,3.1178,2304.9,2304.4,0.43396]
[1726557499330,3.9902,2305.0,2304.3,2.71]
[1726557500232,3.9902,2305.0,2304.5,2.71]
[1726557500422,3.5904,2305.0,2304.7,0.4339]
[1726557501627,3.5904,2305.0,2304.6,0.828]
[1726557501828,4.02426,2305.0,2304.6,0.828]
[1726557502436,0.399,2304.9,2304.6,0.828]
[1726557504924,0.83288,2304.9,2304.6,0.828]
[1726557505126,0.83288,2304.9,2304.4,3.14396]
[1726557505127,0.403,2304.8,2304.5,0.43395]
[1726557505829,0.8369,2304.8,2304.4,0.4019]
[1726557506031,0.83689,2304.8,2304.4,0.4019]
[1726557506731,0.83689,2304.8,2304.4,0.83587]
[1726557508029,0.403,2304.8,2304.4,0.83587]
[1726557510141,0.8369,2304.8,2304.4,0.83587]
[1726557512441,0.403,2304.8,2304.5,0.43395]
[1726557512644,0.403,2304.8,2304.4,0.83586]
[1726557514338,0.83689,2304.8,2304.4,0.83586]
[1726557516737,0.83689,2304.8,2304.4,0.4019]
[1726557516938,0.83689,2304.8,2304.4,0.83587]
[1726557517733,3.14393,2304.7,2304.4,0.4019]
[1726557518043,3.14393,2304.7,2304.3,1.22768]
[1726557518044,0.43393,2304.6,2304.3,0.3948]
[1726557518232,0.415,2304.5,2304.3,0.3948]
[1726557518643,0.3971,2304.4,2304.1,0.4069]
[1726557518837,0.43401,2304.2,2304.0,0.3879]
[1726557519041,3.125,2304.1,2303.8,0.85507]
[1726557519347,3.5167,2304.1,2303.8,0.85508]
[1726557519542,3.5167,2304.1,2303.7,0.7948]
[1726557519734,0.3971,2304.0,2303.7,1.22889]
[1726557519941,0.3971,2304.0,2303.7,0.7948]
[1726557521445,3.2078,2303.9,2303.7,0.7948]
[1726557523354,0.3971,2304.0,2303.7,0.7948]
[1726557523949,0.3971,2304.0,2303.8,0.43408]
[1726557524143,0.3971,2304.0,2303.7,1.22889]
[1726557524546,0.3971,2304.0,2303.8,0.43408]
[1726557524741,0.3971,2304.0,2303.7,1.22889]
[1726557526453,0.3971,2304.0,2303.8,0.43408]
[1726557527038,0.3917,2304.1,2304.0,0.43404]
[1726557527345,0.3917,2304.1,2303.9,0.3898]
[1726557527554,0.3917,2304.1,2303.9,0.82385]
[1726557528049,0.3917,2304.1,2304.0,0.43404]
[1726557531547,0.3917,2304.1,2303.9,0.82385]
[1726557532048,0.3917,2304.1,2303.9,0.3898]
[1726557532242,0.3917,2304.1,2303.8,0.43407]
[1726557532442,3.53573,2304.1,2303.7,1.61529]
[1726557532645,0.81,2304.0,2303.7,1.61529]
[1726557533647,0.81,2304.0,2303.8,0.43408]
[1726557533845,0.388,2304.0,2303.8,0.43408]
[1726557534350,0.3917,2304.1,2303.8,0.43408]
[1726557535153,3.2078,2304.0,2303.8,0.43408]
[1726557539153,3.2078,2304.0,2303.7,1.61529]
[1726557539353,3.2078,2304.0,2303.8,0.43408]
[1726557540146,0.3917,2304.1,2303.8,0.43408]
[1726557541654,0.3917,2304.1,2303.7,1.61529]
[1726557542153,0.3917,2304.1,2303.8,0.43408]
[1726557542655,3.5995,2304.1,2303.8,0.43408]
[1726557543747,0.3917,2304.1,2304.0,0.43404]
[1726557543952,3.14398,2304.4,2303.8,3.2078]
[1726557544150,3.55818,2304.4,2304.0,0.43404]
[1726557544346,3.55818,2304.4,2304.1,0.7992]
[1726557544551,3.55818,2304.4,2304.1,1.1933]
[1726557546052,3.55818,2304.4,2304.1,0.7758]
[1726557548453,2.71,2304.3,2304.1,0.7758]
[1726557548966,0.3985,2304.2,2304.1,0.7758]
[1726557549261,0.3985,2304.2,2304.1,0.3817]